Department Family,Entity,Date,Expenses Type,Expense Area,Supplier,Transaction Number,  Total  ,
Department of Health,The Christie NHS Foundation Trust,16/12/2021,Recurring Charge for PACS Support and Maintenance, Clin Support & Spec Surgery,GE MEDICAL SYSTEMS LIMITED,681273,"33,249.99",
Department of Health,The Christie NHS Foundation Trust,02/12/2021,Recurring Charge for PACS Support and Maintenance, Clin Support & Spec Surgery,GE MEDICAL SYSTEMS LIMITED,679419,"33,249.99",
Department of Health,The Christie NHS Foundation Trust,16/12/2021,GM Pharmacy Logistics Tender, Clin Support & Spec Surgery,HEMPSON SOLICITORS,679343,"25,081.00",
Department of Health,The Christie NHS Foundation Trust,23/12/2021,Surgical Equipment, Clin Support & Spec Surgery,INTUITIVE SURGICAL LTD,683626,"111,012.00",
Department of Health,The Christie NHS Foundation Trust,23/12/2021,Medical Equipment, Clin Support & Spec Surgery,NHS SUPPLY CHAIN,682410,"40,141.53",
Department of Health,The Christie NHS Foundation Trust,16/12/2021,Drugs,Drugs,ALCURA UK LIMITED,683241,"66,702.48",
Department of Health,The Christie NHS Foundation Trust,23/12/2021,Drugs,Drugs,BAXTER HEALTHCARE LTD,682349,"75,119.28",
Department of Health,The Christie NHS Foundation Trust,23/12/2021,Drugs,Drugs,BAXTER HEALTHCARE LTD,682379,"92,670.44",
Department of Health,The Christie NHS Foundation Trust,23/12/2021,Drugs,Drugs,BAXTER HEALTHCARE LTD,682458,"103,173.44",
Department of Health,The Christie NHS Foundation Trust,09/12/2021,Drugs,Drugs,BAXTER HEALTHCARE LTD,680893,"80,753.65",
Department of Health,The Christie NHS Foundation Trust,09/12/2021,Drugs,Drugs,BAXTER HEALTHCARE LTD,680734,"80,784.65",
Department of Health,The Christie NHS Foundation Trust,09/12/2021,Drugs,Drugs,BAXTER HEALTHCARE LTD,680750,"81,081.65",
Department of Health,The Christie NHS Foundation Trust,09/12/2021,Drugs,Drugs,BAXTER HEALTHCARE LTD,680771,"55,356.85",
Department of Health,The Christie NHS Foundation Trust,09/12/2021,Drugs,Drugs,BAXTER HEALTHCARE LTD,680892,"83,777.54",
Department of Health,The Christie NHS Foundation Trust,09/12/2021,Drugs,Drugs,BAXTER HEALTHCARE LTD,681253,"88,577.08",
Department of Health,The Christie NHS Foundation Trust,23/12/2021,Drugs,Drugs,BAXTER HEALTHCARE LTD,681963,"151,816.26",
Department of Health,The Christie NHS Foundation Trust,23/12/2021,Drugs,Drugs,BAXTER HEALTHCARE LTD,682342,"83,249.29",
Department of Health,The Christie NHS Foundation Trust,23/12/2021,Drugs,Drugs,BAXTER HEALTHCARE LTD,682332,"84,259.50",
Department of Health,The Christie NHS Foundation Trust,16/12/2021,Drugs,Drugs,BAXTER HEALTHCARE LTD,682333,"358,148.40",
Department of Health,The Christie NHS Foundation Trust,23/12/2021,Drugs,Drugs,BAXTER HEALTHCARE LTD,683028,"78,535.49",
Department of Health,The Christie NHS Foundation Trust,09/12/2021,Drugs,Drugs,BAXTER HEALTHCARE LTD,679719,"94,538.53",
Department of Health,The Christie NHS Foundation Trust,09/12/2021,Drugs,Drugs,BAXTER HEALTHCARE LTD,679830,"41,314.85",
Department of Health,The Christie NHS Foundation Trust,09/12/2021,Drugs,Drugs,BAXTER HEALTHCARE LTD,680263,"87,913.93",
Department of Health,The Christie NHS Foundation Trust,09/12/2021,Drugs,Drugs,BAXTER HEALTHCARE LTD,680264,"60,667.56",
Department of Health,The Christie NHS Foundation Trust,09/12/2021,Drugs,Drugs,BAXTER HEALTHCARE LTD,680270,"88,932.92",
Department of Health,The Christie NHS Foundation Trust,09/12/2021,Drugs,Drugs,BAXTER HEALTHCARE LTD,680280,"102,907.01",
Department of Health,The Christie NHS Foundation Trust,09/12/2021,Drugs,Drugs,BAXTER HEALTHCARE LTD,680410,"59,070.73",
Department of Health,The Christie NHS Foundation Trust,09/12/2021,Drugs,Drugs,EAST CHESHIRE NHS TRUST,677979,"131,170.76",
Department of Health,The Christie NHS Foundation Trust,02/12/2021,Drugs,Drugs,EAST CHESHIRE NHS TRUST,678028,"131,170.76",
Department of Health,The Christie NHS Foundation Trust,23/12/2021,Drugs,Drugs,EAST CHESHIRE NHS TRUST,680274,"142,546.93",
Department of Health,The Christie NHS Foundation Trust,16/12/2021,Drugs,Drugs,HEALTHCARE AT HOME LTD,682427,"27,503.00",
Department of Health,The Christie NHS Foundation Trust,23/12/2021,Drugs,Drugs,HEALTHCARE AT HOME LTD,683212,"44,297.00",
Department of Health,The Christie NHS Foundation Trust,09/12/2021,Drugs,Drugs,HEALTHCARE AT HOME LTD,681828,"63,628.00",
Department of Health,The Christie NHS Foundation Trust,16/12/2021,Drugs,Drugs,MID CHESHIRE HOSPITALS NHS FT,680122,"152,514.60",
Department of Health,The Christie NHS Foundation Trust,09/12/2021,Drugs,Drugs,MID CHESHIRE HOSPITALS NHS FT,677572,"179,039.76",
Department of Health,The Christie NHS Foundation Trust,15/12/2021,Blood Products, Network Services,DD NHS BLOOD AND TRANSPLANT,680769,"160,265.00",
Department of Health,The Christie NHS Foundation Trust,16/12/2021,Electricity Invoice - September 2021, Network Services,EDF ENERGY,680419,"83,942.95",
Department of Health,The Christie NHS Foundation Trust,16/12/2021,Electricity Invoice - July 2021, Network Services,EDF ENERGY,680520,"95,301.18",
Department of Health,The Christie NHS Foundation Trust,16/12/2021,Electricity Invoice - May 2021, Network Services,EDF ENERGY,680523,"85,654.59",
Department of Health,The Christie NHS Foundation Trust,16/12/2021,Electricity Invoice - June 2021, Network Services,EDF ENERGY,680525,"85,827.22",
Department of Health,The Christie NHS Foundation Trust,16/12/2021,Medical Equipment, Network Services,GILEAD SCIENCES LTD,681564,"224,360.80",
Department of Health,The Christie NHS Foundation Trust,16/12/2021,Q1 Paed Anaesthetic Consultant Meeting, Network Services,MANCHESTER UNIVERSITY NHS FT,679582,"44,205.33",
Department of Health,The Christie NHS Foundation Trust,23/12/2021,Service Charge of Macmilan Centre - December 2021, Network Services,MID CHESHIRE HOSPITALS NHS FT,681991,"52,893.00",
Department of Health,The Christie NHS Foundation Trust,09/12/2021,Blood Products, Network Services,NHS BLOOD AND TRANSPLANT,680776,"28,346.66",
Department of Health,The Christie NHS Foundation Trust,02/12/2021,Blood Products, Network Services,NHS BLOOD AND TRANSPLANT,680596,"49,113.32",
Department of Health,The Christie NHS Foundation Trust,16/12/2021,Chemotherapy SLA Invoice, Network Services,STOCKPORT NHS FOUNDATION TRUST,681277,"30,717.00",
Department of Health,The Christie NHS Foundation Trust,09/12/2021,Medical Equipment Service Contracts, Network Services,VARIAN MEDICAL SYSTEMS UK LTD,680844,"253,066.34",
Department of Health,The Christie NHS Foundation Trust,02/12/2021,Facilities Management Services - December 2021,Christie Pathology Partner,CPP FACILITIES LLP,680855,"180,459.88",
Department of Health,The Christie NHS Foundation Trust,16/12/2021,Facilities Management Services - January 2022,Christie Pathology Partner,CPP FACILITIES LLP,682856,"180,459.88",
Department of Health,The Christie NHS Foundation Trust,16/12/2021,Facilities Management Services - October 2021,Christie Pathology Partner,CPP FACILITIES LLP,681573,"237,055.18",
Department of Health,The Christie NHS Foundation Trust,02/12/2021,Pathology Testing Services - December 2021,Christie Pathology Partner,THE CHRISTIE PATHOLOGY PARTNERSHIP LLP,680835,"379,726.40",
Department of Health,The Christie NHS Foundation Trust,16/12/2021,Pathology Testing Services - October 2021,Christie Pathology Partner,THE CHRISTIE PATHOLOGY PARTNERSHIP LLP,681571,"498,815.07",
Department of Health,The Christie NHS Foundation Trust,16/12/2021,Pathology Testing Services - January 2022,Christie Pathology Partner,THE CHRISTIE PATHOLOGY PARTNERSHIP LLP,682855,"379,726.40",
Department of Health,The Christie NHS Foundation Trust,15/12/2021,"CNST, LTPS & PES - December 2021", Quality & Standards,DD  NHS RESOLUTION,683251,"177,439.90",
Department of Health,The Christie NHS Foundation Trust,16/12/2021,External Audit Fees ,Finance & Business Developm,GRANT THORNTON UK LLP,682645,"27,000.00",
Department of Health,The Christie NHS Foundation Trust,16/12/2021,Audit Assurance Plan Q2 2021/22,Finance & Business Developm,LIVERPOOL UNIVERSITY HOSPITALS NHS FT,681630,"25,593.75",
Department of Health,The Christie NHS Foundation Trust,24/12/2021,Online Portal Subscription Package,School of Oncology,ON24 INC.,683558,"33,144.00",
Department of Health,The Christie NHS Foundation Trust,07/12/2021,Rates,Estates & Facilities,DD M/CR CITY COUNCIL (RATES),682548,"75,629.00",
Department of Health,The Christie NHS Foundation Trust,23/12/2021,Rental of Building - December 2021,Estates & Facilities,NORTHERN CARE ALLIANCE NHS FT,683306,"25,974.41",
Department of Health,The Christie NHS Foundation Trust,16/12/2021,Energy Bill,Estates & Facilities,VITAL ENERGI SOLUTIONS LTD,676104,"226,928.53",
Department of Health,The Christie NHS Foundation Trust,16/12/2021,Energy Bill,Estates & Facilities,VITAL ENERGI SOLUTIONS LTD,678654,"223,572.91",
Department of Health,The Christie NHS Foundation Trust,16/12/2021,Energy Bill,Estates & Facilities,VITAL ENERGI SOLUTIONS LTD,681105,"363,336.80",
Department of Health,The Christie NHS Foundation Trust,16/12/2021,Gas Charges,Estates & Facilities,VITAL ENERGI SOLUTIONS LTD,681104,"34,965.88",
Department of Health,The Christie NHS Foundation Trust,16/12/2021,Education & Training Hub Recharges 2021/22,Other Income Levies and Gra,MANCHESTER UNIVERSITY NHS FT,681320,"51,479.00",
Department of Health,The Christie NHS Foundation Trust,09/12/2021,Medical Equipment, Christie Medical Physics,ADVANCED ACCELERATOR APPLICATIONS LTD,680939,"37,002.00",
Department of Health,The Christie NHS Foundation Trust,09/12/2021,PET-CT Recharge, Christie Medical Physics,ALLIANCE MEDICAL LTD,681049,"81,570.00",
Department of Health,The Christie NHS Foundation Trust,23/12/2021,Outsourced PET-CT Appointments, Christie Medical Physics,ALLIANCE MEDICAL LTD,682658,"200,560.00",
Department of Health,The Christie NHS Foundation Trust,02/12/2021,Medical Equipment, Christie Medical Physics,NHS SUPPLY CHAIN,680091,"86,725.00",
Department of Health,The Christie NHS Foundation Trust,23/12/2021,Consultancy Fees - November 2021,Capital,AIRE LOGIC LIMITED,682690,"68,467.50",
Department of Health,The Christie NHS Foundation Trust,09/12/2021,Consultancy Fees - October 2021,Capital,AIRE LOGIC LIMITED,680678,"65,745.00",
Department of Health,The Christie NHS Foundation Trust,23/12/2021,Project Management Fee,Capital,ARCADIS LLP,682259,"58,160.04",
Department of Health,The Christie NHS Foundation Trust,09/12/2021,Project Management Fee,Capital,ARCADIS LLP,681029,"58,160.04",
Department of Health,The Christie NHS Foundation Trust,02/12/2021,Computer Equipment,Capital,CCS MEDIA LIMITED,680175,"50,461.50",
Department of Health,The Christie NHS Foundation Trust,16/12/2021,Medical Equipment,Capital,HEALTH TEC MEDICAL LTD,681482,"33,636.72",
Department of Health,The Christie NHS Foundation Trust,16/12/2021,Equipment for Macclesfield Development,Capital,IDEAS BY  MUSIC  LTD,681518,"41,735.40",
Department of Health,The Christie NHS Foundation Trust,23/12/2021,Training Units,Capital,ILLUMIT,682714,"25,114.32",
Department of Health,The Christie NHS Foundation Trust,16/12/2021,Computer Software Installation,Capital,INSIGHT DIRECT (UK) LTD,681519,"702,536.99",
Department of Health,The Christie NHS Foundation Trust,09/12/2021,Medical Equipment,Capital,INSIGHT DIRECT (UK) LTD,681648,"46,440.36",
Department of Health,The Christie NHS Foundation Trust,09/12/2021,Paterson Redevelopment Project - Contract Works ,Capital,INTEGRATED HEALTH PROJECTS,681978,"5,411,806.30",
Department of Health,The Christie NHS Foundation Trust,23/12/2021,The Christie Paterson Redevelopment Scheme - Payment Certificate,Capital,INTEGRATED HEALTH PROJECTS,683585,"6,374,951.80",
Department of Health,The Christie NHS Foundation Trust,16/12/2021,Equipment for Macclesfield Development,Capital,NHS SUPPLY CHAIN,682677,"80,695.81",
Department of Health,The Christie NHS Foundation Trust,23/12/2021,Medical Equipment,Capital,PAXMAN COOLERS LIMITED,682654,"28,800.00",
Department of Health,The Christie NHS Foundation Trust,09/12/2021,Medical Equipment,Capital,PHILIPS HEALTHCARE,680395,"326,330.37",
Department of Health,The Christie NHS Foundation Trust,23/12/2021,Medical Equipment,Capital,PHILIPS HEALTHCARE,682147,"350,727.17",
Department of Health,The Christie NHS Foundation Trust,02/12/2021,Medical Infrastructure,Capital,PTW UK LTD,676578,"120,100.80",
Department of Health,The Christie NHS Foundation Trust,23/12/2021,Medical Infrastructure,Capital,PTW UK LTD,682029,"100,084.00",
Department of Health,The Christie NHS Foundation Trust,16/12/2021,Car Park Construction Works,Capital,VINCI CONSTRUCTION UK LIMITED,682369,"1,170,446.00",
Department of Health,The Christie NHS Foundation Trust,23/12/2021,Macclesfield Christie Construction Works,Capital,VINCI CONSTRUCTION UK LIMITED,682845,"564,061.20",
Department of Health,The Christie NHS Foundation Trust,23/12/2021,Energy Costs,Capital,VITAL ENERGI SOLUTIONS LTD,682053,"1,213,884.00",
Department of Health,The Christie NHS Foundation Trust,02/12/2021,Medical Equipment,Capital,XIEL LTD,677114,"156,314.90",
Department of Health,The Christie NHS Foundation Trust,09/12/2021,GM Cancer Equipment Funding, Manchester Cancer,NORTHERN CARE ALLIANCE NHS FT,682001,"91,506.00",
Department of Health,The Christie NHS Foundation Trust,23/12/2021,Print Mangement Service, Digital Services,APOGEE CORPORATION LTD,681691,"37,544.10",
Department of Health,The Christie NHS Foundation Trust,02/12/2021,Security Software Licenses , Digital Services,BYTES SOFTWARE SERVICES,681465,"28,335.05",
Department of Health,The Christie NHS Foundation Trust,02/12/2021,Software Packages, Digital Services,SOFTCAT PLC,680350,"91,618.70",
Department of Health,The Christie NHS Foundation Trust,02/12/2021,System Support maintenance - December 2021, Digital Services,SYSTEM C HEALTHCARE,680314,"23,362.71",
Department of Health,The Christie NHS Foundation Trust,23/12/2021,System Support maintenance - January 2022, Digital Services,SYSTEM C HEALTHCARE,682770,"23,362.71",
Department of Health,The Christie NHS Foundation Trust,23/12/2021,Non Medical Equipment Macclesfield, Digital Services,VIRGIN MEDIA BUSINESS,682207,"64,702.03",
Department of Health,The Christie NHS Foundation Trust,16/12/2021,All Wards & Departments ,The Christie NHS FT Balance,NHS SUPPLY CHAIN,681716,"85,122.42",
Department of Health,The Christie NHS Foundation Trust,16/12/2021,All Wards & Departments ,The Christie NHS FT Balance,NHS SUPPLY CHAIN,681717,"77,433.64",
Department of Health,The Christie NHS Foundation Trust,16/12/2021,All Wards & Departments ,The Christie NHS FT Balance,NHS SUPPLY CHAIN,681718,"71,052.92",
Department of Health,The Christie NHS Foundation Trust,16/12/2021,All Wards & Departments ,The Christie NHS FT Balance,NHS SUPPLY CHAIN,681719,"81,713.66",
Department of Health,The Christie NHS Foundation Trust,16/12/2021,All Wards & Departments ,The Christie NHS FT Balance,NHS SUPPLY CHAIN,681720,"69,307.81",
Department of Health,The Christie NHS Foundation Trust,23/12/2021,All Wards & Departments ,The Christie NHS FT Balance,NHS SUPPLY CHAIN,679716,"74,903.50",
